[Event "Early-Titled-Tuesday-Blitz-February-27-2024"]
[Site "Chess.com"]
[Date "2024.02.27"]
[Round "8"]
[White "ReinisUz"]
[Black "Nouali_Mohamed"]
[Result "1-0"]
[WhiteElo "2415"]
[BlackElo "2529"]
[TimeControl "180+1"]
[EndTime "9:27:47 PST"]
[Termination "ReinisUz won by checkmate"]

1. c4 {[%clk 0:02:59.8]} 1... Nf6 {[%clk 0:02:58.8]} 2. Nc3 {[%clk 0:03:00.2]}
2... g6 {[%clk 0:02:59.4]} 3. g3 {[%clk 0:03:00.3]} 3... d6 {[%clk 0:03:00.3]}
4. Bg2 {[%clk 0:03:00.8]} 4... Bg7 {[%clk 0:03:00.8]} 5. e4 {[%clk 0:03:01.4]}
5... O-O {[%clk 0:03:01.3]} 6. Nge2 {[%clk 0:03:02]} 6... c5 {[%clk 0:03:00.5]}
7. O-O {[%clk 0:03:02.5]} 7... Nc6 {[%clk 0:03:00.9]} 8. d3 {[%clk 0:03:03]}
8... h6 {[%clk 0:02:56.8]} 9. Rb1 {[%clk 0:03:03.4]} 9... a5 {[%clk 0:02:57]}
10. h3 {[%clk 0:03:01.3]} 10... Kh7 {[%clk 0:02:56.7]} 11. Kh2 {[%clk
0:03:01.5]} 11... e6 {[%clk 0:02:42.4]} 12. f4 {[%clk 0:03:00.4]} 12... Qe7
{[%clk 0:02:36]} 13. Nb5 {[%clk 0:02:44.2]} 13... Rd8 {[%clk 0:02:30]} 14. Nec3
{[%clk 0:02:24.9]} 14... d5 {[%clk 0:01:35.1]} 15. cxd5 {[%clk 0:02:14.2]} 15...
exd5 {[%clk 0:01:34.7]} 16. e5 {[%clk 0:02:14.3]} 16... Nh5 {[%clk 0:00:56.6]}
17. Nxd5 {[%clk 0:02:11.4]} 17... Rxd5 {[%clk 0:00:46.9]} 18. Bxd5 {[%clk
0:02:12.3]} 18... Bxh3 {[%clk 0:00:40.4]} 19. Kxh3 {[%clk 0:01:49.6]} 19... Qd7+
{[%clk 0:00:39.9]} 20. g4 {[%clk 0:01:29.2]} 20... Nxf4+ {[%clk 0:00:38.7]} 21.
Bxf4 {[%clk 0:01:22.3]} 21... Qxd5 {[%clk 0:00:39.6]} 22. Nc7 {[%clk 0:01:20]}
22... Qxa2 {[%clk 0:00:33.5]} 23. Nxa8 {[%clk 0:01:19.8]} 23... Nd4 {[%clk
0:00:33.4]} 24. Nc7 {[%clk 0:01:11.5]} 24... h5 {[%clk 0:00:33.3]} 25. gxh5
{[%clk 0:01:10.9]} 25... c4 {[%clk 0:00:23.8]} 26. hxg6+ {[%clk 0:01:05.5]}
26... fxg6 {[%clk 0:00:24.7]} 27. Qg4 {[%clk 0:00:48.1]} 27... Qb3 {[%clk
0:00:11.2]} 28. Qh4+ {[%clk 0:00:45.1]} 28... Kg8 {[%clk 0:00:09.9]} 29. Qd8+
{[%clk 0:00:45.1]} 29... Kh7 {[%clk 0:00:10.3]} 30. Qxd4 {[%clk 0:00:45.6]}
30... cxd3 {[%clk 0:00:05.8]} 31. Rbd1 {[%clk 0:00:29.5]} 31... d2+ {[%clk
0:00:05.2]} 32. Qc3 {[%clk 0:00:29.3]} 32... Qf7 {[%clk 0:00:05.4]} 33. Rxd2
{[%clk 0:00:27.2]} 33... Qf5+ {[%clk 0:00:05.5]} 34. Kg2 {[%clk 0:00:26.9]}
34... Bf8 {[%clk 0:00:03.1]} 35. Bg3 {[%clk 0:00:24.9]} 35... Qc8 {[%clk
0:00:02.1]} 36. e6 {[%clk 0:00:21.4]} 36... b5 {[%clk 0:00:01.9]} 37. Rh1+
{[%clk 0:00:20.1]} 37... Kg8 {[%clk 0:00:02.2]} 38. Qh8# {[%clk 0:00:18.7]} 1-0

[Event "Early-Titled-Tuesday-Blitz-February-27-2024"]
[Site "Chess.com"]
[Date "2024.02.27"]
[Round "8"]
[White "DonMicheleCorleone"]
[Black "Kazancev_Valerij_M"]
[Result "1-0"]
[WhiteElo "2525"]
[BlackElo "2393"]
[TimeControl "180+1"]
[EndTime "9:27:47 PST"]
[Termination "DonMicheleCorleone won on time"]

1. e4 {[%clk 0:03:00.9]} 1... g6 {[%clk 0:02:54.3]} 2. Nc3 {[%clk 0:03:00.5]}
2... Bg7 {[%clk 0:02:49.3]} 3. f4 {[%clk 0:03:01]} 3... e6 {[%clk 0:02:44]} 4.
Nf3 {[%clk 0:03:00.9]} 4... Ne7 {[%clk 0:02:42.8]} 5. d4 {[%clk 0:02:55]} 5...
f5 {[%clk 0:02:36.8]} 6. e5 {[%clk 0:02:54.3]} 6... a6 {[%clk 0:02:35.9]} 7. d5
{[%clk 0:02:53.7]} 7... d6 {[%clk 0:02:13.6]} 8. dxe6 {[%clk 0:02:44.8]} 8...
dxe5 {[%clk 0:02:12.4]} 9. Qxd8+ {[%clk 0:02:45]} 9... Kxd8 {[%clk 0:02:09.5]}
10. Ng5 {[%clk 0:02:45.8]} 10... Ke8 {[%clk 0:02:07.3]} 11. Bc4 {[%clk
0:02:43.1]} 11... Nbc6 {[%clk 0:01:54]} 12. Nf7 {[%clk 0:02:39.5]} 12... Rf8
{[%clk 0:01:49.5]} 13. fxe5 {[%clk 0:02:39.6]} 13... Nxe5 {[%clk 0:01:47.6]} 14.
Nxe5 {[%clk 0:02:39.5]} 14... Bxe5 {[%clk 0:01:45.9]} 15. Bh6 {[%clk 0:02:40.3]}
15... Rf6 {[%clk 0:01:34.2]} 16. Bg7 {[%clk 0:02:32]} 16... Bxc3+ {[%clk
0:01:11.5]} 17. bxc3 {[%clk 0:02:30]} 17... Rxe6+ {[%clk 0:01:11.7]} 18. Bxe6
{[%clk 0:02:30]} 18... Bxe6 {[%clk 0:01:12]} 19. O-O-O {[%clk 0:02:24.9]} 19...
Kf7 {[%clk 0:01:10.6]} 20. Rhe1 {[%clk 0:02:25.1]} 20... Nd5 {[%clk 0:01:02.4]}
21. c4 {[%clk 0:02:20.3]} 21... Nb4 {[%clk 0:00:49.6]} 22. Bc3 {[%clk
0:02:19.8]} 22... Nxa2+ {[%clk 0:00:41.3]} 23. Kb2 {[%clk 0:02:20.4]} 23... Nxc3
{[%clk 0:00:37.5]} 24. Kxc3 {[%clk 0:02:21.3]} 24... b5 {[%clk 0:00:30.8]} 25.
cxb5 {[%clk 0:02:18.5]} 25... axb5 {[%clk 0:00:29.9]} 26. Ra1 {[%clk 0:02:18.8]}
26... Rc8 {[%clk 0:00:19.7]} 27. Kb4 {[%clk 0:02:14.4]} 27... c6 {[%clk
0:00:19.5]} 28. Ra7+ {[%clk 0:02:09]} 28... Kf6 {[%clk 0:00:18.9]} 29. Rxh7
{[%clk 0:02:07.9]} 29... Bd5 {[%clk 0:00:18.8]} 30. g3 {[%clk 0:02:05]} 30...
Ra8 {[%clk 0:00:17.6]} 31. Re2 {[%clk 0:01:42.2]} 31... Ra4+ {[%clk 0:00:16.5]}
32. Kc5 {[%clk 0:01:42.5]} 32... Rc4+ {[%clk 0:00:15.1]} 33. Kd6 {[%clk
0:01:42.6]} 33... Be4 {[%clk 0:00:15.4]} 34. Rc7 {[%clk 0:01:37.8]} 34... b4
{[%clk 0:00:15.3]} 35. h4 {[%clk 0:01:29.7]} 35... Bxc2 {[%clk 0:00:13.2]} 36.
Ree7 {[%clk 0:01:23.4]} 36... Rd4+ {[%clk 0:00:05.7]} 37. Kc5 {[%clk 0:01:21.5]}
37... Rd5+ {[%clk 0:00:02.4]} 38. Kxc6 {[%clk 0:01:22]} 38... Rd3 {[%clk
0:00:01.8]} 39. Rf7+ {[%clk 0:01:14.5]} 39... Ke5 {[%clk 0:00:01.9]} 40. Rce7+
{[%clk 0:01:14.5]} 40... Kd4 {[%clk 0:00:02]} 41. Rd7+ {[%clk 0:01:11]} 41...
Kc3 {[%clk 0:00:01.6]} 42. Rxd3+ {[%clk 0:01:10.6]} 42... Bxd3 {[%clk
0:00:01.4]} 43. Kd6 {[%clk 0:00:56.6]} 43... b3 {[%clk 0:00:01.1]} 44. Rc7+
{[%clk 0:00:44.4]} 1-0

[Event "Early-Titled-Tuesday-Blitz-February-27-2024"]
[Site "Chess.com"]
[Date "2024.02.27"]
[Round "8"]
[White "Pelusiansky"]
[Black "Chessdude1987"]
[Result "1-0"]
[WhiteElo "2601"]
[BlackElo "2371"]
[TimeControl "180+1"]
[EndTime "9:27:48 PST"]
[Termination "Pelusiansky won on time"]

1. d4 {[%clk 0:03:00.9]} 1... e6 {[%clk 0:03:00]} 2. c4 {[%clk 0:03:00.9]} 2...
f5 {[%clk 0:03:00.3]} 3. g3 {[%clk 0:02:59.7]} 3... Nf6 {[%clk 0:03:00.9]} 4.
Bg2 {[%clk 0:03:00.3]} 4... Bb4+ {[%clk 0:03:01]} 5. Nd2 {[%clk 0:02:59.8]} 5...
a5 {[%clk 0:03:00.6]} 6. a3 {[%clk 0:02:59.1]} 6... Be7 {[%clk 0:02:51.2]} 7.
Qc2 {[%clk 0:02:49]} 7... d6 {[%clk 0:02:50.2]} 8. Nh3 {[%clk 0:02:47]} 8... e5
{[%clk 0:02:44.3]} 9. dxe5 {[%clk 0:02:43.6]} 9... dxe5 {[%clk 0:02:44.2]} 10.
O-O {[%clk 0:02:36.1]} 10... Nc6 {[%clk 0:02:34.1]} 11. e3 {[%clk 0:02:30.2]}
11... O-O {[%clk 0:02:29.8]} 12. b3 {[%clk 0:02:25.8]} 12... h6 {[%clk
0:02:18.5]} 13. Bb2 {[%clk 0:02:23.9]} 13... Be6 {[%clk 0:01:47.9]} 14. Nf3
{[%clk 0:02:13.4]} 14... Nd7 {[%clk 0:01:37.2]} 15. Rfd1 {[%clk 0:02:00.3]}
15... Qe8 {[%clk 0:01:36.4]} 16. Kh1 {[%clk 0:01:49]} 16... Bf6 {[%clk
0:01:28.2]} 17. Ne1 {[%clk 0:01:41.4]} 17... g5 {[%clk 0:01:19.9]} 18. f4 {[%clk
0:01:28.2]} 18... e4 {[%clk 0:01:02.6]} 19. Bxf6 {[%clk 0:01:22]} 19... Nxf6
{[%clk 0:01:01.1]} 20. fxg5 {[%clk 0:01:22.6]} 20... Ng4 {[%clk 0:01:01.2]} 21.
Qe2 {[%clk 0:01:12.1]} 21... hxg5 {[%clk 0:00:57.4]} 22. Nxg5 {[%clk 0:01:05.9]}
22... Qh5 {[%clk 0:00:56.4]} 23. h4 {[%clk 0:01:03.2]} 23... Rf6 {[%clk
0:00:51.5]} 24. Bh3 {[%clk 0:00:57.1]} 24... Nce5 {[%clk 0:00:41.7]} 25. Ng2
{[%clk 0:00:56.5]} 25... Nd3 {[%clk 0:00:32.6]} 26. Bxg4 {[%clk 0:00:47.2]}
26... fxg4 {[%clk 0:00:18.2]} 27. Nf4 {[%clk 0:00:47.2]} 27... Nxf4 {[%clk
0:00:16.2]} 28. exf4 {[%clk 0:00:45.7]} 28... Bf5 {[%clk 0:00:09]} 29. Qe3
{[%clk 0:00:45.8]} 29... Re8 {[%clk 0:00:07.9]} 30. Rd5 {[%clk 0:00:45]} 30...
Qg6 {[%clk 0:00:05.8]} 31. Rad1 {[%clk 0:00:43.3]} 31... b6 {[%clk 0:00:05.3]}
32. a4 {[%clk 0:00:42]} 32... Rff8 {[%clk 0:00:05.1]} 33. Kg2 {[%clk 0:00:39.7]}
33... c6 {[%clk 0:00:05.1]} 34. Rd6 {[%clk 0:00:39.3]} 34... Rf6 {[%clk
0:00:05.4]} 35. R6d4 {[%clk 0:00:32.8]} 35... c5 {[%clk 0:00:05]} 36. Rd5 {[%clk
0:00:32.9]} 36... Qg7 {[%clk 0:00:03.4]} 37. Re5 {[%clk 0:00:29.2]} 37... Rxe5
{[%clk 0:00:02.6]} 38. fxe5 {[%clk 0:00:29.7]} 38... Rf8 {[%clk 0:00:02.5]} 39.
Rd5 {[%clk 0:00:28.6]} 39... Bc8 {[%clk 0:00:01.8]} 40. Qxe4 {[%clk 0:00:26.9]}
40... Bb7 {[%clk 0:00:01.6]} 41. Ne6 {[%clk 0:00:24.7]} 41... Bxd5 {[%clk
0:00:01.7]} 42. cxd5 {[%clk 0:00:24.5]} 42... Qf7 {[%clk 0:00:01.4]} 43. Nxf8
{[%clk 0:00:24]} 43... Qxf8 {[%clk 0:00:01.7]} 44. Qxg4+ {[%clk 0:00:24.3]} 1-0

[Event "Early-Titled-Tuesday-Blitz-February-27-2024"]
[Site "Chess.com"]
[Date "2024.02.27"]
[Round "8"]
[White "vi_pranav"]
[Black "Sina_Movahed"]
[Result "0-1"]
[WhiteElo "3102"]
[BlackElo "2962"]
[TimeControl "180+1"]
[EndTime "9:27:51 PST"]
[Termination "Sina_Movahed won on time"]

1. d4 {[%clk 0:02:59.9]} 1... Nf6 {[%clk 0:02:59.6]} 2. Nc3 {[%clk 0:02:59.5]}
2... d5 {[%clk 0:02:59.3]} 3. Bf4 {[%clk 0:02:58.4]} 3... c5 {[%clk 0:02:58.5]}
4. e4 {[%clk 0:02:58.3]} 4... cxd4 {[%clk 0:02:32]} 5. Qxd4 {[%clk 0:02:57.3]}
5... Nc6 {[%clk 0:02:31.8]} 6. Bb5 {[%clk 0:02:57.6]} 6... a6 {[%clk 0:02:30.3]}
7. Bxc6+ {[%clk 0:02:26.9]} 7... bxc6 {[%clk 0:02:31.2]} 8. Nf3 {[%clk
0:02:27.3]} 8... e6 {[%clk 0:02:27.8]} 9. O-O {[%clk 0:02:17.7]} 9... Be7 {[%clk
0:02:14.1]} 10. Ne5 {[%clk 0:02:13.9]} 10... Bd7 {[%clk 0:02:08.2]} 11. Rad1
{[%clk 0:02:06.6]} 11... O-O {[%clk 0:02:07.1]} 12. Qe3 {[%clk 0:02:00.7]} 12...
Be8 {[%clk 0:02:00.4]} 13. h3 {[%clk 0:01:55.5]} 13... Qa5 {[%clk 0:01:52]} 14.
a3 {[%clk 0:01:31.6]} 14... Rc8 {[%clk 0:01:31.5]} 15. b4 {[%clk 0:01:29]} 15...
Qd8 {[%clk 0:01:30.6]} 16. Rfe1 {[%clk 0:01:25.5]} 16... a5 {[%clk 0:01:23.4]}
17. exd5 {[%clk 0:00:38.7]} 17... cxd5 {[%clk 0:01:18.2]} 18. Rd4 {[%clk
0:00:38.5]} 18... axb4 {[%clk 0:01:11.3]} 19. axb4 {[%clk 0:00:39.4]} 19... Qb6
{[%clk 0:01:08.8]} 20. Rb1 {[%clk 0:00:36.2]} 20... Qb7 {[%clk 0:01:02.4]} 21.
Rb3 {[%clk 0:00:33.8]} 21... Bd8 {[%clk 0:01:01.3]} 22. Qf3 {[%clk 0:00:26.4]}
22... Nd7 {[%clk 0:00:55.7]} 23. Nc4 {[%clk 0:00:13.7]} 23... Bf6 {[%clk
0:00:32.2]} 24. Nd6 {[%clk 0:00:12.7]} 24... Qa8 {[%clk 0:00:31.1]} 25. Rd1
{[%clk 0:00:10.3]} 25... Rc6 {[%clk 0:00:24.7]} 26. Ncb5 {[%clk 0:00:07.9]}
26... Nb6 {[%clk 0:00:20.5]} 27. Ra3 {[%clk 0:00:06.6]} 27... Qd8 {[%clk
0:00:20.2]} 28. Nxe8 {[%clk 0:00:04.9]} 28... Rxe8 {[%clk 0:00:19.4]} 29. Ra6
{[%clk 0:00:05.4]} 29... Qd7 {[%clk 0:00:17.9]} 30. Na7 {[%clk 0:00:04]} 30...
Qb7 {[%clk 0:00:14.6]} 31. b5 {[%clk 0:00:03.7]} 31... Rc4 {[%clk 0:00:12.3]}
32. Be3 {[%clk 0:00:03.6]} 32... Nd7 {[%clk 0:00:11.9]} 33. Qe2 {[%clk
0:00:02.6]} 33... h6 {[%clk 0:00:11.7]} 34. Rb1 {[%clk 0:00:01.5]} 34... Ra8
{[%clk 0:00:10.6]} 0-1

[Event "Early-Titled-Tuesday-Blitz-February-27-2024"]
[Site "Chess.com"]
[Date "2024.02.27"]
[Round "8"]
[White "Binary010"]
[Black "FoggyMorning"]
[Result "0-1"]
[WhiteElo "2841"]
[BlackElo "2667"]
[TimeControl "180+1"]
[EndTime "9:27:51 PST"]
[Termination "FoggyMorning won by resignation"]

1. e4 {[%clk 0:03:00.9]} 1... e6 {[%clk 0:03:00]} 2. d4 {[%clk 0:03:00.8]} 2...
d5 {[%clk 0:03:00.6]} 3. Nc3 {[%clk 0:03:01.2]} 3... Bb4 {[%clk 0:03:00]} 4.
exd5 {[%clk 0:03:00.2]} 4... exd5 {[%clk 0:03:00.2]} 5. Bd3 {[%clk 0:03:00.8]}
5... Nc6 {[%clk 0:03:00.1]} 6. a3 {[%clk 0:03:00.4]} 6... Bxc3+ {[%clk
0:02:58.1]} 7. bxc3 {[%clk 0:03:01.3]} 7... Nge7 {[%clk 0:02:58.4]} 8. Qh5
{[%clk 0:02:59.3]} 8... Be6 {[%clk 0:02:57.2]} 9. Nf3 {[%clk 0:02:55.8]} 9...
Qd7 {[%clk 0:02:55.4]} 10. h3 {[%clk 0:02:47.1]} 10... Bf5 {[%clk 0:02:39.9]}
11. O-O {[%clk 0:02:46.9]} 11... O-O-O {[%clk 0:02:22.6]} 12. Re1 {[%clk
0:02:27.2]} 12... Bg6 {[%clk 0:02:14.3]} 13. Qh4 {[%clk 0:02:22.3]} 13... Rde8
{[%clk 0:02:05.5]} 14. Bd2 {[%clk 0:02:19.4]} 14... Bxd3 {[%clk 0:01:55.9]} 15.
cxd3 {[%clk 0:02:19.5]} 15... Qf5 {[%clk 0:01:56.8]} 16. Qg4 {[%clk 0:02:02.6]}
16... Qxg4 {[%clk 0:01:53.7]} 17. hxg4 {[%clk 0:02:03.5]} 17... Kd7 {[%clk
0:01:37.1]} 18. c4 {[%clk 0:01:44.1]} 18... f6 {[%clk 0:01:25.2]} 19. g5 {[%clk
0:01:29.4]} 19... Nf5 {[%clk 0:01:17.9]} 20. gxf6 {[%clk 0:01:28]} 20... gxf6
{[%clk 0:01:18.8]} 21. Bc3 {[%clk 0:01:27.5]} 21... Rhg8 {[%clk 0:01:13.4]} 22.
Kf1 {[%clk 0:01:21.1]} 22... Rxe1+ {[%clk 0:01:00.9]} 23. Rxe1 {[%clk
0:01:21.3]} 23... Rg4 {[%clk 0:01:01.7]} 24. cxd5 {[%clk 0:01:17.3]} 24... Nce7
{[%clk 0:00:49.2]} 25. Re4 {[%clk 0:01:16.4]} 25... Rg7 {[%clk 0:00:42]} 26. Rf4
{[%clk 0:01:13]} 26... Nd6 {[%clk 0:00:34]} 27. Rxf6 {[%clk 0:01:05.7]} 27...
Nxd5 {[%clk 0:00:34.2]} 28. Rxd6+ {[%clk 0:00:47.3]} 28... cxd6 {[%clk 0:00:33]}
29. Bd2 {[%clk 0:00:47.5]} 29... b5 {[%clk 0:00:27.1]} 30. Ne1 {[%clk 0:00:45]}
30... Rg8 {[%clk 0:00:26.2]} 31. Ke2 {[%clk 0:00:43.8]} 31... Re8+ {[%clk
0:00:22.4]} 32. Kd1 {[%clk 0:00:41.3]} 32... Rb8 {[%clk 0:00:17.8]} 33. Nc2
{[%clk 0:00:40.3]} 33... Rc8 {[%clk 0:00:14.3]} 34. f4 {[%clk 0:00:31.4]} 34...
h5 {[%clk 0:00:13.6]} 35. Ne1 {[%clk 0:00:26.1]} 35... Rf8 {[%clk 0:00:10.6]}
36. g3 {[%clk 0:00:23.5]} 36... Rg8 {[%clk 0:00:11.1]} 37. Nf3 {[%clk
0:00:15.3]} 37... Rxg3 {[%clk 0:00:11]} 38. Ng5 {[%clk 0:00:16.1]} 38... Rxd3
{[%clk 0:00:09.3]} 39. Kc2 {[%clk 0:00:16.4]} 39... Rxa3 {[%clk 0:00:09.2]} 40.
f5 {[%clk 0:00:16.9]} 40... Ra2+ {[%clk 0:00:07.9]} 41. Kd3 {[%clk 0:00:17.2]}
41... Nf6 {[%clk 0:00:06]} 42. Bf4 {[%clk 0:00:15.8]} 42... Rf2 {[%clk
0:00:05.2]} 43. Ke3 {[%clk 0:00:14.8]} 43... Ng4+ {[%clk 0:00:04.7]} 44. Ke4
{[%clk 0:00:15.4]} 44... d5+ {[%clk 0:00:05.3]} 0-1

[Event "Early-Titled-Tuesday-Blitz-February-27-2024"]
[Site "Chess.com"]
[Date "2024.02.27"]
[Round "8"]
[White "Brahianzevich"]
[Black "ansko1999"]
[Result "0-1"]
[WhiteElo "2507"]
[BlackElo "2736"]
[TimeControl "180+1"]
[EndTime "9:27:53 PST"]
[Termination "ansko1999 won on time"]

1. e4 {[%clk 0:02:58.6]} 1... d6 {[%clk 0:02:58.8]} 2. d4 {[%clk 0:02:58.5]}
2... Nf6 {[%clk 0:02:59.2]} 3. Nd2 {[%clk 0:02:58.7]} 3... c5 {[%clk 0:02:57.8]}
4. dxc5 {[%clk 0:02:31.1]} 4... dxc5 {[%clk 0:02:57.9]} 5. Ngf3 {[%clk
0:02:30.4]} 5... Nc6 {[%clk 0:02:56.1]} 6. g3 {[%clk 0:02:30.7]} 6... Bg4 {[%clk
0:02:47.7]} 7. Bg2 {[%clk 0:02:24.9]} 7... Qd7 {[%clk 0:02:47]} 8. h3 {[%clk
0:02:23.6]} 8... Bh5 {[%clk 0:02:43]} 9. O-O {[%clk 0:02:10.9]} 9... e5 {[%clk
0:02:38.7]} 10. c3 {[%clk 0:01:54.1]} 10... Be7 {[%clk 0:02:30.7]} 11. Qa4
{[%clk 0:01:41.2]} 11... O-O {[%clk 0:02:24.2]} 12. Re1 {[%clk 0:01:41.1]} 12...
Rfd8 {[%clk 0:02:21.2]} 13. Nc4 {[%clk 0:01:25.3]} 13... Bxf3 {[%clk 0:01:50.9]}
14. Bxf3 {[%clk 0:01:24.8]} 14... b5 {[%clk 0:01:51.5]} 15. Qxb5 {[%clk
0:00:55.7]} 15... Nd4 {[%clk 0:01:51.5]} 16. Qxd7 {[%clk 0:00:48.9]} 16... Nxf3+
{[%clk 0:01:51.5]} 17. Kf1 {[%clk 0:00:43.3]} 17... Nxd7 {[%clk 0:01:44.4]} 18.
Rd1 {[%clk 0:00:40.9]} 18... Ng5 {[%clk 0:01:34.1]} 19. Bxg5 {[%clk 0:00:35.9]}
19... Bxg5 {[%clk 0:01:35]} 20. Rd5 {[%clk 0:00:35.2]} 20... Nb6 {[%clk
0:01:23.6]} 21. Rxc5 {[%clk 0:00:27.6]} 21... Nxc4 {[%clk 0:01:17.4]} 22. Rxc4
{[%clk 0:00:28.5]} 22... Rd2 {[%clk 0:01:16.9]} 23. Rb4 {[%clk 0:00:25]} 23...
Rad8 {[%clk 0:01:14.9]} 24. a4 {[%clk 0:00:21.3]} 24... h5 {[%clk 0:01:11.4]}
25. h4 {[%clk 0:00:18.9]} 25... Bf6 {[%clk 0:01:05.4]} 26. Re1 {[%clk
0:00:19.3]} 26... Rc2 {[%clk 0:01:01.7]} 27. Re3 {[%clk 0:00:18.8]} 27... Rdd2
{[%clk 0:01:00.3]} 28. Rb8+ {[%clk 0:00:17.3]} 28... Kh7 {[%clk 0:01:00.4]} 29.
Rf3 {[%clk 0:00:17.9]} 29... Rxb2 {[%clk 0:01:00.1]} 30. Ra8 {[%clk 0:00:18.1]}
30... Rb7 {[%clk 0:00:57.8]} 31. a5 {[%clk 0:00:17.1]} 31... Ra2 {[%clk
0:00:57.9]} 32. Rd3 {[%clk 0:00:13.4]} 32... Rxa5 {[%clk 0:00:57.6]} 33. Kg2
{[%clk 0:00:12.7]} 33... Ra2 {[%clk 0:00:56.7]} 34. c4 {[%clk 0:00:12.1]} 34...
a5 {[%clk 0:00:54]} 35. Rc3 {[%clk 0:00:10.9]} 35... Rc7 {[%clk 0:00:51.6]} 36.
c5 {[%clk 0:00:10.8]} 36... Be7 {[%clk 0:00:49.5]} 37. c6 {[%clk 0:00:11.1]}
37... Bb4 {[%clk 0:00:48.3]} 38. Rc4 {[%clk 0:00:11]} 38... Rd2 {[%clk
0:00:47.8]} 39. Rb8 {[%clk 0:00:09.7]} 39... Rd6 {[%clk 0:00:47.7]} 40. Rb7
{[%clk 0:00:09.4]} 40... Rcxc6 {[%clk 0:00:45.6]} 41. Rxc6 {[%clk 0:00:08.7]}
41... Rxc6 {[%clk 0:00:46.5]} 42. Rxf7 {[%clk 0:00:09.3]} 42... Ra6 {[%clk
0:00:46.2]} 43. Rf5 {[%clk 0:00:08]} 43... Bc3 {[%clk 0:00:44.1]} 44. Rxh5+
{[%clk 0:00:07.7]} 44... Kg8 {[%clk 0:00:43.9]} 45. Rf5 {[%clk 0:00:07.1]} 45...
a4 {[%clk 0:00:44.2]} 46. Rf3 {[%clk 0:00:08]} 46... Bd4 {[%clk 0:00:43.9]} 47.
Ra3 {[%clk 0:00:07.9]} 47... Bc5 {[%clk 0:00:44.4]} 48. Ra2 {[%clk 0:00:08.8]}
48... a3 {[%clk 0:00:44.7]} 49. f4 {[%clk 0:00:07.7]} 49... Rb6 {[%clk
0:00:44.5]} 50. Kh3 {[%clk 0:00:07.9]} 50... Rb2 {[%clk 0:00:44.6]} 51. Ra1
{[%clk 0:00:08.3]} 51... a2 {[%clk 0:00:44]} 52. fxe5 {[%clk 0:00:07.9]} 52...
Bd4 {[%clk 0:00:44.4]} 53. Kg4 {[%clk 0:00:08.2]} 53... Re2 {[%clk 0:00:43.9]}
54. Rf1 {[%clk 0:00:08]} 54... a1=Q {[%clk 0:00:43.7]} 55. Rxa1 {[%clk
0:00:08.3]} 55... Bxa1 {[%clk 0:00:44.6]} 0-1

[Event "Early-Titled-Tuesday-Blitz-February-27-2024"]
[Site "Chess.com"]
[Date "2024.02.27"]
[Round "8"]
[White "Schattman"]
[Black "sathvikadiga"]
[Result "0-1"]
[WhiteElo "2440"]
[BlackElo "2551"]
[TimeControl "180+1"]
[EndTime "9:27:53 PST"]
[Termination "sathvikadiga won by checkmate"]

1. f4 {[%clk 0:03:00.9]} 1... Nf6 {[%clk 0:02:58.5]} 2. Nf3 {[%clk 0:03:00]}
2... d5 {[%clk 0:02:58.1]} 3. g3 {[%clk 0:03:00.3]} 3... g6 {[%clk 0:02:58.4]}
4. Bg2 {[%clk 0:03:00.7]} 4... Bg7 {[%clk 0:02:59]} 5. O-O {[%clk 0:03:00.6]}
5... c5 {[%clk 0:02:59.7]} 6. Ne5 {[%clk 0:03:00]} 6... Nc6 {[%clk 0:02:58.4]}
7. Nxc6 {[%clk 0:02:58.5]} 7... bxc6 {[%clk 0:02:59.3]} 8. c4 {[%clk 0:02:58.4]}
8... O-O {[%clk 0:02:58.3]} 9. d3 {[%clk 0:02:58.8]} 9... Re8 {[%clk 0:02:43.8]}
10. Nc3 {[%clk 0:02:51]} 10... Bf5 {[%clk 0:02:39.2]} 11. h3 {[%clk 0:02:47.8]}
11... h5 {[%clk 0:02:36.5]} 12. e4 {[%clk 0:02:37.8]} 12... Be6 {[%clk
0:02:11.7]} 13. e5 {[%clk 0:02:35.4]} 13... Nh7 {[%clk 0:02:06.7]} 14. Qe2
{[%clk 0:02:31.2]} 14... Qd7 {[%clk 0:02:03.8]} 15. Kh2 {[%clk 0:02:28.3]} 15...
Rad8 {[%clk 0:01:51]} 16. Na4 {[%clk 0:02:27.4]} 16... dxc4 {[%clk 0:01:27.6]}
17. dxc4 {[%clk 0:02:23.9]} 17... Qd4 {[%clk 0:01:27.4]} 18. Be3 {[%clk
0:02:19.7]} 18... Qxc4 {[%clk 0:01:15.1]} 19. Qxc4 {[%clk 0:02:17.1]} 19... Bxc4
{[%clk 0:01:16]} 20. Rfc1 {[%clk 0:02:03.6]} 20... Bd5 {[%clk 0:01:14.1]} 21.
Nxc5 {[%clk 0:01:56.8]} 21... f6 {[%clk 0:01:08.3]} 22. Bxd5+ {[%clk 0:01:43.7]}
22... Rxd5 {[%clk 0:00:59.8]} 23. e6 {[%clk 0:01:34.6]} 23... f5 {[%clk
0:00:53.3]} 24. Rab1 {[%clk 0:01:28.1]} 24... Red8 {[%clk 0:00:43]} 25. Kg2
{[%clk 0:01:26.9]} 25... Bd4 {[%clk 0:00:38.6]} 26. Bxd4 {[%clk 0:01:11.6]}
26... Rxd4 {[%clk 0:00:39.5]} 27. Rc2 {[%clk 0:01:11.1]} 27... Nf6 {[%clk
0:00:36.5]} 28. Rf1 {[%clk 0:00:59.8]} 28... R8d5 {[%clk 0:00:31.3]} 29. Rff2
{[%clk 0:00:50.4]} 29... h4 {[%clk 0:00:27.9]} 30. Rfe2 {[%clk 0:00:49.3]} 30...
hxg3 {[%clk 0:00:23.1]} 31. Nb3 {[%clk 0:00:40.9]} 31... Rxf4 {[%clk 0:00:22.4]}
32. Rxc6 {[%clk 0:00:40.5]} 32... Ne4 {[%clk 0:00:21.5]} 33. Rc8+ {[%clk
0:00:35.3]} 33... Kg7 {[%clk 0:00:21.2]} 34. Rc7 {[%clk 0:00:34.8]} 34... Kf6
{[%clk 0:00:18.3]} 35. Rxa7 {[%clk 0:00:31.3]} 35... Rd1 {[%clk 0:00:18]} 36.
Rxe4 {[%clk 0:00:17.5]} 36... Rxe4 {[%clk 0:00:16.1]} 37. Kxg3 {[%clk
0:00:17.6]} 37... Re2 {[%clk 0:00:14.3]} 38. Kf3 {[%clk 0:00:16.8]} 38... Rxb2
{[%clk 0:00:13.7]} 39. Nc5 {[%clk 0:00:16.7]} 39... Rc1 {[%clk 0:00:11.9]} 40.
Nd7+ {[%clk 0:00:16.2]} 40... Kxe6 {[%clk 0:00:11.9]} 41. Nf8+ {[%clk
0:00:16.4]} 41... Kf7 {[%clk 0:00:12.4]} 42. Nd7 {[%clk 0:00:16.2]} 42... Rc3+
{[%clk 0:00:12.8]} 43. Kf4 {[%clk 0:00:16.5]} 43... Rb4+ {[%clk 0:00:13.4]} 44.
Kg5 {[%clk 0:00:16.7]} 44... Rg3+ {[%clk 0:00:12]} 45. Kh6 {[%clk 0:00:16.3]}
45... Rh4# {[%clk 0:00:12.6]} 0-1